[Event "82nd Brazilian-ch 2015"]
[Site "Rio de Janeiro"]
[Date "2016.01.13"]
[Round "6"]
[White "Reis, Renan do Carmo"]
[Black "Teixeira, Ricardo da Silva"]
[Result "1-0"]
[ECO "C00"]
[WhiteElo "2254"]
[BlackElo "2234"]
[PlyCount "93"]
[EventDate "2016.??.??"]
[EventCountry "BRA"]
[TimeControl "5400+30"]

1. e4 e6 2. d3 d5 3. Nd2 Nf6 4. Ngf3 b6 5. c3 Bb7 6. e5 Nfd7 7. d4 c5 8. Bd3
Nc6 9. a3 Be7 10. O-O g5 11. b4 c4 12. Bc2 Qc7 13. a4 g4 14. Ne1 h5 15. f3
O-O-O 16. b5 Ncxe5 17. dxe5 Qxe5 18. Nb1 Bc5+ 19. Kh1 h4 20. fxg4 h3 21. Bf4
hxg2+ 22. Nxg2 Qg7 23. Qe2 Rdg8 24. Bd1 e5 25. Be3 d4 26. Bg1 d3 27. Qe1 Rh3
28. Nd2 Rgh8 29. Bf3 Bxf3 30. Rxf3 Qxg4 31. Rxh3 Qxh3 32. Nf1 Bxg1 33. Kxg1 f5
34. Qg3 Qh5 35. a5 f4 36. Qg7 Qh7 37. Qxh7 Rxh7 38. Nd2 Nc5 39. axb6 axb6 40.
Nxc4 f3 41. Nge3 Ne4 42. Nxe5 Rg7+ 43. Kf1 f2 44. N5g4 Rf7 45. Ra2 d2 46. Nd1
Nxc3 47. Nxc3 1-0

[Event "82nd Brazilian-ch 2015"]
[Site "Rio de Janeiro"]
[Date "2016.01.13"]
[Round "6"]
[White "Santos, Marcus Vinicius M"]
[Black "Santiago, Yago De Moura"]
[Result "0-1"]
[ECO "A50"]
[WhiteElo "2367"]
[BlackElo "2422"]
[PlyCount "68"]
[EventDate "2016.??.??"]
[EventCountry "BRA"]
[TimeControl "5400+30"]

1. d4 {[%emt 0:00:01]} Nf6 {[%emt 0:03:24]} 2. c4 {[%emt 0:00:15]} b6 {[%emt 0:
00:05]} 3. Nc3 {[%emt 0:03:47]} Bb7 {[%emt 0:00:05]} 4. d5 {[%emt 0:02:06]} e6
{[%emt 0:00:15]} 5. a3 {[%emt 0:00:25]} Bd6 {[%emt 0:00:14]} 6. Nf3 {[%emt 0:
00:55]} O-O {[%emt 0:00:10]} 7. g3 {[%emt 0:01:11]} exd5 {[%emt 0:09:33]} 8.
cxd5 {[%emt 0:00:44]} c6 {[%emt 0:00:47]} 9. Bg2 {[%emt 0:03:13]} Na6 {[%emt 0:
00:47]} 10. Nd4 {[%emt 0:02:37]} Be5 {[%emt 0:05:00]} 11. O-O {[%emt 0:02:51]}
c5 {[%emt 0:03:37]} 12. Nf5 {[%emt 0:03:21]} d6 {[%emt 0:00:29]} 13. f4 {
[%emt 0:06:13]} Bxc3 {[%emt 0:00:12]} 14. bxc3 {[%emt 0:00:07]} Bc8 {[%emt 0:
02:35]} 15. Ne3 {[%emt 0:01:52]} Re8 {[%emt 0:00:34]} 16. Qd3 {[%emt 0:00:40]}
b5 {[%emt 0:06:22]} 17. c4 {[%emt 0:12:44]} bxc4 {[%emt 0:02:43]} 18. Nxc4 {
[%emt 0:00:43]} Nc7 {[%emt 0:00:11]} 19. e4 {[%emt 0:03:10]} Ba6 {[%emt 0:00:
31]} 20. Bd2 {[%emt 0:01:14]} Nd7 {[%emt 0:11:18]} 21. Qc2 {[%emt 0:12:39]}
Bxc4 {[%emt 0:17:28]} 22. Qxc4 {[%emt 0:00:09]} Nb6 {[%emt 0:00:03]} 23. Qd3 {
[%emt 0:02:44]} Qd7 {[%emt 0:03:38]} 24. Rae1 {[%emt 0:04:58]} Qa4 {[%emt 0:02:
08]} 25. e5 {[%emt 0:03:09]} c4 {[%emt 0:00:52]} 26. Qf3 {[%emt 0:01:41]} Ncxd5
{[%emt 0:10:40]} 27. exd6 {[%emt 0:00:17]} Qd7 {[%emt 0:00:13]} 28. Rd1 {
[%emt 0:01:34]} Rad8 {[%emt 0:04:40]} 29. Rfe1 {[%emt 0:14:29]} Qxd6 {[%emt 0:
05:00]} 30. Rxe8+ {[%emt 0:01:36]} Rxe8 {[%emt 0:00:05]} 31. Bb4 {[%emt 0:00:
28]} Qc7 {[%emt 0:00:47]} 32. Rxd5 {[%emt 0:02:45]} Nxd5 {[%emt 0:00:06]} 33.
Qxd5 {[%emt 0:00:06]} c3 {[%emt 0:01:42]} 34. Bc5 {[%emt 0:06:40]} c2 {[%emt 0:
01:10]} 0-1

[Event "82nd Brazilian-ch 2015"]
[Site "Rio de Janeiro"]
[Date "2016.01.12"]
[Round "4"]
[White "Barbosa, Evandro Amorim"]
[Black "Choma, Ernani Francisco"]
[Result "1/2-1/2"]
[ECO "B31"]
[WhiteElo "2461"]
[BlackElo "2383"]
[PlyCount "52"]
[EventDate "2016.??.??"]
[EventCountry "BRA"]
[TimeControl "5400+30"]

1. e4 c5 {[%emt 0:02:01]} 2. Nf3 {[%emt 0:00:00]} Nc6 {[%emt 0:00:18]} 3. Bb5 {
[%emt 0:00:00]} g6 {[%emt 0:01:58]} 4. O-O {[%emt 0:00:00]} Bg7 {[%emt 0:01:16]
} 5. c3 {[%emt 0:00:23]} Nf6 {[%emt 0:01:58]} 6. e5 {[%emt 0:00:22]} Nd5 {
[%emt 0:00:40]} 7. d4 {[%emt 0:00:14]} cxd4 {[%emt 0:03:46]} 8. cxd4 {[%emt 0:
00:08]} O-O {[%emt 0:02:37]} 9. Nc3 {[%emt 0:00:10]} Nxc3 {[%emt 0:04:14]} 10.
bxc3 {[%emt 0:00:04]} d6 {[%emt 0:00:25]} 11. exd6 {[%emt 0:00:06]} Qxd6 {
[%emt 0:07:06]} 12. a4 {[%emt 0:00:09]} Be6 {[%emt 0:03:41]} 13. Ba3 {[%emt 0:
09:34]} Qc7 {[%emt 0:01:04]} 14. Re1 {[%emt 0:00:36]} a6 {[%emt 0:02:13]} 15.
Bd3 {[%emt 0:12:53]} Na5 {[%emt 0:16:08]} 16. Rb1 {[%emt 0:16:08]} Qxc3 17.
Bxe7 {[%emt 0:01:56]} Rfe8 {[%emt 0:20:07]} 18. Bb4 {[%emt 0:02:07]} Qc7 {
[%emt 0:00:05]} 19. Rc1 {[%emt 0:02:46]} Nc6 {[%emt 0:01:50]} 20. Be4 {[%emt 0:
03:25]} Qd7 {[%emt 0:01:45]} 21. Bxc6 {[%emt 0:05:10]} bxc6 {[%emt 0:00:12]}
22. Ne5 {[%emt 0:00:13]} Bxe5 {[%emt 0:03:58]} 23. Rxe5 {[%emt 0:02:11]} Bd5 {
[%emt 0:04:13]} 24. h3 {[%emt 0:02:13]} f6 {[%emt 0:03:37]} 25. Rxe8+ {[%emt 0:
02:11]} Rxe8 {[%emt 0:00:35]} 26. Qd2 {[%emt 0:00:29]} Qe6 {[%emt 0:00:54]}
1/2-1/2

[Event "82nd Brazilian-ch 2015"]
[Site "Rio de Janeiro"]
[Date "2016.01.12"]
[Round "4"]
[White "Limp, Eduardo Thelio"]
[Black "Leitao, Rafael Duailibe"]
[Result "0-1"]
[ECO "A48"]
[WhiteElo "2385"]
[BlackElo "2633"]
[PlyCount "135"]
[EventDate "2016.??.??"]
[EventCountry "BRA"]
[TimeControl "5400+30"]

1. d4 {[%emt 0:00:00]} Nf6 {[%emt 0:00:00]} 2. Nf3 {[%emt 0:00:00]} g6 {
[%emt 0:00:37]} 3. c3 {[%emt 0:00:05]} Bg7 {[%emt 0:00:12]} 4. Bg5 {[%emt 0:00:
43]} c5 {[%emt 0:05:14]} 5. e3 {[%emt 0:00:23]} O-O {[%emt 0:04:04]} 6. Nbd2 {
[%emt 0:00:12]} b6 {[%emt 0:09:53]} 7. Be2 {[%emt 0:00:59]} Bb7 {[%emt 0:00:19]
} 8. O-O {[%emt 0:00:13]} Nc6 {[%emt 0:01:44]} 9. Bxf6 {[%emt 0:04:47]} Bxf6 {
[%emt 0:10:30]} 10. dxc5 {[%emt 0:00:30]} Rb8 {[%emt 0:01:34]} 11. Ne4 {
[%emt 0:23:34]} Bg7 {[%emt 0:00:23]} 12. Qa4 {[%emt 0:00:49]} Ba8 {[%emt 0:01:
01]} 13. Rab1 {[%emt 0:11:46]} bxc5 {[%emt 0:16:35]} 14. Nxc5 {[%emt 0:00:53]}
d6 {[%emt 0:01:17]} 15. Nb3 {[%emt 0:02:26]} Rb6 {[%emt 0:04:54]} 16. Rbd1 {
[%emt 0:03:19]} Qb8 {[%emt 0:01:03]} 17. Rd2 {[%emt 0:01:24]} e6 {[%emt 0:03:
56]} 18. e4 {[%emt 0:10:39]} Ne7 {[%emt 0:01:24]} 19. Rfd1 {[%emt 0:02:32]} Bh6
{[%emt 0:15:05]} 20. Rd4 {[%emt 0:01:05]} Bg7 {[%emt 0:01:59]} 21. R4d2 {
[%emt 0:00:11]} d5 {[%emt 0:00:51]} 22. exd5 {[%emt 0:00:50]} Nxd5 {[%emt 0:00:
18]} 23. g3 {[%emt 0:04:32]} Nf6 {[%emt 0:00:53]} 24. Ne1 {[%emt 0:06:28]} Ne4
{[%emt 0:02:16]} 25. Rd3 {[%emt 0:05:30]} Bd5 {[%emt 0:00:59]} 26. Ra1 {
[%emt 0:05:07]} Rc8 {[%emt 0:08:55]} 27. Re3 {[%emt 0:03:38]} Nd6 {[%emt 0:00:
32]} 28. Bf1 {[%emt 0:05:36]} Nc4 {[%emt 0:03:02]} 29. Re2 {[%emt 0:00:23]} Bf8
{[%emt 0:02:35]} 30. Nd3 {[%emt 0:00:43]} Bb7 {[%emt 0:00:39]} 31. Nbc1 {
[%emt 0:05:13]} Bf3 {[%emt 0:00:53]} 32. Re1 {[%emt 0:00:24]} Bg7 {[%emt 0:01:
46]} 33. Bg2 {[%emt 0:00:53]} Bxg2 {[%emt 0:00:11]} 34. Kxg2 {[%emt 0:00:03]}
Qb7+ {[%emt 0:00:15]} 35. Kg1 {[%emt 0:00:09]} Nxb2 {[%emt 0:00:53]} 36. Nxb2 {
[%emt 0:00:09]} Bxc3 {[%emt 0:00:23]} 37. Ncd3 {[%emt 0:00:44]} Bxb2 {[%emt 0:
00:18]} 38. Rab1 {[%emt 0:00:17]} Bf6 {[%emt 0:00:29]} 39. Rxb6 {[%emt 0:00:13]
} Qxb6 {[%emt 0:00:03]} 40. Nf4 {[%emt 0:00:58]} Bd4 {[%emt 0:00:35]} 41. Rf1 {
[%emt 0:00:55]} Rd8 {[%emt 0:00:47]} 42. h4 {[%emt 0:00:19]} h5 {[%emt 0:00:21]
} 43. Qc2 {[%emt 0:00:22]} Kg7 {[%emt 0:00:07]} 44. Rb1 {[%emt 0:00:36]} Qc5 {
[%emt 0:00:51]} 45. Qe2 {[%emt 0:00:18]} Rd7 {[%emt 0:00:41]} 46. Kg2 {[%emt 0:
00:20]} Be5 {[%emt 0:00:56]} 47. Nh3 {[%emt 0:01:11]} Bf6 {[%emt 0:00:19]} 48.
Rd1 {[%emt 0:00:42]} Rxd1 {[%emt 0:00:48]} 49. Qxd1 {[%emt 0:00:07]} Bd4 {
[%emt 0:00:33]} 50. Qe2 {[%emt 0:00:10]} Qe5 {[%emt 0:00:12]} 51. Qf3 {[%emt 0:
00:41]} Qf6 {[%emt 0:00:30]} 52. Qe2 {[%emt 0:00:15]} Bb6 {[%emt 0:00:40]} 53.
Ng5 {[%emt 0:00:11]} Qf5 {[%emt 0:00:15]} 54. Nh3 {[%emt 0:00:19]} Qd5+ {
[%emt 0:00:14]} 55. Kg1 {[%emt 0:00:20]} Bd8 {[%emt 0:00:58]} 56. Qb2+ {
[%emt 0:00:34]} Bf6 {[%emt 0:00:05]} 57. Qe2 {[%emt 0:00:11]} Qd4 {[%emt 0:00:
22]} 58. Kg2 {[%emt 0:00:19]} a5 {[%emt 0:00:11]} 59. Ng1 {[%emt 0:01:05]} a4 {
[%emt 0:00:18]} 60. Nh3 {[%emt 0:00:25]} Qd5+ {[%emt 0:00:54]} 61. Kg1 {
[%emt 0:00:16]} Qe5 {[%emt 0:00:31]} 62. Qc4 {[%emt 0:00:38]} Qd4 {[%emt 0:00:
21]} 63. Qe2 {[%emt 0:00:13]} Qg4 {[%emt 0:00:56]} 64. Qxg4 {[%emt 0:02:10]}
hxg4 {[%emt 0:00:03]} 65. Nf4 {[%emt 0:00:10]} Bd4 {[%emt 0:00:53]} 66. Kf1 {
[%emt 0:00:15]} Kf6 {[%emt 0:00:31]} 67. Ke2 {[%emt 0:00:26]} Kf5 {[%emt 0:00:
28]} 68. Nd3 {[%emt 0:01:19] Ke5} 0-1

[Event "82nd Brazilian-ch 2015"]
[Site "Rio de Janeiro"]
[Date "2016.01.12"]
[Round "4"]
[White "Macedo, Maximo Iack"]
[Black "Mekhitarian, Krikor Sevag"]
[Result "0-1"]
[ECO "A13"]
[WhiteElo "2316"]
[BlackElo "2555"]
[PlyCount "70"]
[EventDate "2016.??.??"]
[EventCountry "BRA"]
[TimeControl "5400+30"]

1. Nf3 {[%emt 0:03:39]} Nf6 {[%emt 0:04:02]} 2. c4 {[%emt 0:01:21]} e6 {
[%emt 0:07:39]} 3. g3 {[%emt 0:12:47]} d5 {[%emt 0:00:39]} 4. Bg2 {[%emt 0:00:
06]} dxc4 {[%emt 0:01:00]} 5. Qa4+ {[%emt 0:00:39]} Bd7 {[%emt 0:00:39]} 6.
Qxc4 {[%emt 0:00:07]} c5 {[%emt 0:00:02]} 7. Ne5 {[%emt 0:01:00]} Qc8 {[%emt 0:
00:05]} 8. Nc3 {[%emt 0:08:31]} Nc6 {[%emt 0:00:50]} 9. Nxd7 {[%emt 0:00:14]}
Qxd7 {[%emt 0:00:02]} 10. O-O {[%emt 0:00:36]} Rc8 {[%emt 0:01:03]} 11. a4 {
[%emt 0:06:00]} Be7 {[%emt 0:04:15]} 12. a5 {[%emt 0:12:02]} O-O {[%emt 0:00:
47]} 13. d3 {[%emt 0:12:08]} Rfd8 {[%emt 0:07:47]} 14. Rd1 {[%emt 0:05:52]} Nd5
{[%emt 0:06:40]} 15. Kf1 {[%emt 0:16:47]} Ndb4 {[%emt 0:07:17]} 16. Bd2 {
[%emt 0:08:35]} Nd4 {[%emt 0:04:04]} 17. Na2 {[%emt 0:02:58]} Nbc6 {[%emt 0:23:
52]} 18. Nc3 {[%emt 0:00:54]} Nc2 {[%emt 0:02:26]} 19. Rac1 {[%emt 0:00:10]}
N2b4 {[%emt 0:01:07]} 20. Ra1 {[%emt 0:00:16]} a6 {[%emt 0:02:14]} 21. Ne4 {
[%emt 0:01:27]} Nd4 {[%emt 0:03:25]} 22. Bc3 {[%emt 0:01:27]} h6 {[%emt 0:05:
43]} 23. Bxd4 {[%emt 0:00:36]} cxd4 {[%emt 0:00:15]} 24. Qb3 {[%emt 0:00:07]}
Rc7 {[%emt 0:07:18]} 25. Nd2 {[%emt 0:00:22]} Qb5 {[%emt 0:01:07]} 26. Nc4 {
[%emt 0:02:17]} h5 {[%emt 0:00:01]} 27. Qa4 {[%emt 0:00:36]} Qc5 {[%emt 0:00:
11]} 28. Bf3 {[%emt 0:01:19]} h4 {[%emt 0:00:14]} 29. Rac1 {[%emt 0:00:24]} Qg5
{[%emt 0:02:26]} 30. Kg2 {[%emt 0:00:34]} Rdc8 {[%emt 0:01:20]} 31. Qb3 {
[%emt 0:00:45]} g6 {[%emt 0:02:10]} 32. Rb1 {[%emt 0:00:46]} Kg7 33. Nd2 {
[%emt 0:00:24]} Qxa5 {[%emt 0:00:18]} 34. Ra1 {[%emt 0:00:39]} Qb5 {[%emt 0:01:
32]} 35. Ne4 {[%emt 0:00:28]} a5 {[%emt 0:01:00]} 0-1

[Event "82nd Brazilian-ch 2015"]
[Site "Rio de Janeiro"]
[Date "2016.01.12"]
[Round "4"]
[White "Reis, Renan do Carmo"]
[Black "Brito, Luismar"]
[Result "1-0"]
[ECO "B40"]
[WhiteElo "2254"]
[BlackElo "2235"]
[PlyCount "83"]
[EventDate "2016.??.??"]
[EventCountry "BRA"]
[TimeControl "5400+30"]

1. e4 c5 2. Nf3 e6 3. b3 Nc6 4. Bb2 d6 5. d4 cxd4 6. Nxd4 Nf6 7. Bd3 e5 8. Ne2
Be7 9. c4 O-O 10. Nbc3 Bg4 11. f3 Be6 12. Nd5 Ne8 13. O-O g6 14. f4 Ng7 15.
Nxe7+ Nxe7 16. fxe5 Nc6 17. exd6 Qxd6 18. Nf4 Rad8 19. Nd5 Bxd5 20. exd5 Ne5
21. Bc2 f6 22. Qd4 b6 23. a4 Rf7 24. Rae1 Re8 25. Qh4 Nd7 26. Rxe8+ Nxe8 27.
Re1 Re7 28. Bd4 Ne5 29. h3 Kg7 30. Qf2 Qb4 31. Re2 Nd7 32. Bc3 Rxe2 33. Bxb4
Rxf2 34. Kxf2 Nc5 35. Ke3 Kf7 36. Kd4 Nb7 37. Ba3 a5 38. c5 bxc5+ 39. Bxc5 f5
40. b4 axb4 41. Bxb4 Ned6 42. Bd3 1-0

[Event "82nd Brazilian-ch 2015"]
[Site "Rio de Janeiro"]
[Date "2016.01.12"]
[Round "4"]
[White "Santos, Marcus Vinicius M"]
[Black "Souza, Rafael Cabral de"]
[Result "1-0"]
[ECO "D36"]
[WhiteElo "2367"]
[BlackElo "2159"]
[PlyCount "125"]
[EventDate "2016.??.??"]
[EventCountry "BRA"]
[TimeControl "5400+30"]

1. d4 Nf6 2. c4 e6 3. Nc3 d5 4. cxd5 exd5 5. Bg5 c6 6. Qc2 Be7 7. e3 Nbd7 8.
Bd3 Nf8 9. Nf3 Ne6 10. Bh4 g6 11. O-O Ng7 12. b4 a6 13. Rab1 O-O 14. a4 Bf5 15.
Bxf5 Nxf5 16. Bxf6 Bxf6 17. b5 axb5 18. axb5 Nd6 19. bxc6 bxc6 20. Nd2 Ra6 21.
Na4 Nb5 22. Nc5 Ra7 23. Ra1 Qb6 24. Rxa7 Qxa7 25. Ndb3 Ra8 26. Nd3 Qb6 27. Rc1
Rc8 28. Nbc5 Qd8 29. Ra1 Be7 30. Ne5 Bd6 31. Nb7 Qb6 32. Nxd6 Nxd6 33. Rc1 Nb7
34. g3 Kg7 35. Qa2 f6 36. Rb1 Qc7 37. Qa6 Nd8 38. Nd3 Rb8 39. Rxb8 Qxb8 40. Nc5
h5 41. Kg2 g5 42. h3 Qc7 43. Qa8 Kg6 44. g4 Kh6 45. gxh5 Kxh5 46. Qa2 Kg6 47.
Qc2+ Kh6 48. Qf5 Qe7 49. Kf3 Nf7 50. Qc8 Nd8 51. Kg4 Qe8 52. Qf5 Qh5+ 53. Kg3
Qf7 54. Qc8 Qe7 55. Qf5 Nf7 56. Kg4 Nd6 57. Qe6 Qf8 58. Nd7 Qf7 59. Qxd6 Qh5+
60. Kg3 Qh4+ 61. Kg2 Qe4+ 62. Kg1 Qb1+ 63. Kh2 1-0

[Event "82nd Brazilian-ch 2015"]
[Site "Rio de Janeiro"]
[Date "2016.01.12"]
[Round "4"]
[White "Teixeira, Ricardo da Silva"]
[Black "Santiago, Yago De Moura"]
[Result "0-1"]
[ECO "A13"]
[WhiteElo "2234"]
[BlackElo "2422"]
[PlyCount "80"]
[EventDate "2016.??.??"]
[EventCountry "BRA"]
[TimeControl "5400+30"]

1. Nf3 Nf6 2. c4 e6 3. g3 d5 4. Bg2 dxc4 5. O-O Nbd7 6. Qa4 a6 7. Qxc4 b5 8.
Qc2 Bb7 9. a4 c5 10. d3 Be7 11. Nc3 Bc6 12. axb5 axb5 13. Rxa8 Qxa8 14. Ne1 Nd5
15. Nxd5 Bxd5 16. e4 Bc6 17. Qe2 O-O 18. Nc2 Re8 19. Be3 Qa2 20. b4 cxb4 21.
Ra1 Qb2 22. Qd1 Qf6 23. Rb1 e5 24. Nxb4 Bxb4 25. Rxb4 Qd6 26. Qb1 Nc5 27. Bf1
Ne6 28. Qb2 Rd8 29. Rb3 h6 30. h4 f5 31. Bg2 f4 32. Bc1 Nd4 33. Rc3 Bd7 34. Ra3
fxg3 35. fxg3 Qg6 36. Kh2 Rf8 37. Be3 Nf3+ 38. Bxf3 Rxf3 39. Bf2 Qg4 40. Kg2
Rf8 0-1

[Event "82nd Brazilian-ch 2015"]
[Site "Rio de Janeiro"]
[Date "2016.01.15"]
[Round "9"]
[White "Barbosa, Evandro Amorim"]
[Black "Santos, Marcus Vinicius M"]
[Result "1-0"]
[ECO "B06"]
[WhiteElo "2461"]
[BlackElo "2367"]
[PlyCount "77"]
[EventDate "2016.??.??"]
[EventCountry "BRA"]
[TimeControl "5400+30"]

1. e4 {[%emt 0:00:00]} g6 {[%emt 0:00:41]} 2. d4 {[%emt 0:00:00]} Bg7 {[%emt 0:
00:09]} 3. Nc3 {[%emt 0:00:00]} d6 {[%emt 0:00:10]} 4. Be3 {[%emt 0:00:02]} a6
{[%emt 0:00:14]} 5. Qd2 {[%emt 0:00:13]} b5 {[%emt 0:00:26]} 6. a4 {[%emt 0:00:
28]} b4 {[%emt 0:00:48]} 7. Nd1 {[%emt 0:00:14]} Bb7 {[%emt 0:03:25]} 8. f3 {
[%emt 0:00:31]} a5 {[%emt 0:01:22]} 9. c3 {[%emt 0:00:11]} bxc3 {[%emt 0:01:34]
} 10. bxc3 {[%emt 0:00:14]} Nd7 {[%emt 0:00:15]} 11. Bd3 {[%emt 0:01:05]} Ngf6
{[%emt 0:01:44]} 12. Ne2 {[%emt 0:00:57]} e5 {[%emt 0:01:08]} 13. O-O {[%emt 0:
00:30]} d5 {[%emt 0:04:54]} 14. Nf2 {[%emt 0:01:38]} O-O {[%emt 0:01:05]} 15.
Bh6 {[%emt 0:00:39]} c5 {[%emt 0:03:28]} 16. Bxg7 {[%emt 0:01:41]} Kxg7 {
[%emt 0:00:08]} 17. Rab1 {[%emt 0:01:46]} Qc7 {[%emt 0:01:35]} 18. Ng3 {
[%emt 0:03:39]} h6 {[%emt 0:03:15]} 19. Bb5 {[%emt 0:06:49]} Rfd8 {[%emt 0:02:
36]} 20. Ng4 {[%emt 0:08:28]} Nxg4 {[%emt 0:04:45]} 21. fxg4 {[%emt 0:00:44]}
Nf8 {[%emt 0:05:31]} 22. Qf2 {[%emt 0:17:36]} cxd4 {[%emt 0:05:26]} 23. cxd4 {
[%emt 0:00:21]} Qe7 {[%emt 0:08:10]} 24. dxe5 {[%emt 0:11:11]} dxe4 {[%emt 0:
01:01]} 25. Rbe1 {[%emt 0:00:55]} Ne6 {[%emt 0:19:34]} 26. Nxe4 {[%emt 0:08:47]
} Rd4 {[%emt 0:05:41]} 27. Nd6 {[%emt 0:02:32]} Rf4 {[%emt 0:01:07]} 28. Qg3 {
[%emt 0:00:41]} Rxf1+ {[%emt 0:01:26]} 29. Rxf1 {[%emt 0:00:06]} Rf8 {[%emt 0:
00:21]} 30. Bc4 {[%emt 0:05:41]} Bc6 {[%emt 0:01:12]} 31. h4 {[%emt 0:01:31]}
Qa7+ {[%emt 0:02:55]} 32. Kh2 {[%emt 0:00:13]} Qd4 {[%emt 0:03:13]} 33. Rf6 {
[%emt 0:02:27]} Bd5 {[%emt 0:02:35]} 34. Bd3 {[%emt 0:05:33]} Qb2 {[%emt 0:02:
18]} 35. Nf5+ {[%emt 0:02:59]} Kh7 {[%emt 0:00:40]} 36. Ne3 {[%emt 0:02:45]}
Bb3 {[%emt 0:01:21]} 37. h5 {[%emt 0:00:23]} Qd4 {[%emt 0:00:58]} 38. hxg6+ {
[%emt 0:00:37]} Kg8 {[%emt 0:00:46]} 39. Nf5 {[%emt 0:00:45]} 1-0

[Event "82nd Brazilian-ch 2015"]
[Site "Rio de Janeiro"]
[Date "2016.01.15"]
[Round "9"]
[White "Brito, Luismar"]
[Black "Macedo, Maximo Iack"]
[Result "1/2-1/2"]
[ECO "B08"]
[WhiteElo "2235"]
[BlackElo "2316"]
[PlyCount "29"]
[EventDate "2016.??.??"]
[EventCountry "BRA"]
[TimeControl "5400+30"]

1. e4 g6 2. d4 Bg7 3. Be2 d6 4. Nf3 Nf6 5. Nc3 O-O 6. O-O Na6 7. h3 c5 8. d5 e6
9. Re1 exd5 10. exd5 Nc7 11. a4 b6 12. Ra3 Bb7 13. Bc4 Re8 14. Rxe8+ Qxe8 15.
Qd3 1/2-1/2

[Event "82nd Brazilian-ch 2015"]
[Site "Rio de Janeiro"]
[Date "2016.01.15"]
[Round "9"]
[White "Choma, Ernani Francisco"]
[Black "Leitao, Rafael Duailibe"]
[Result "1/2-1/2"]
[ECO "A06"]
[WhiteElo "2383"]
[BlackElo "2633"]
[PlyCount "76"]
[EventDate "2016.??.??"]
[EventCountry "BRA"]
[TimeControl "5400+30"]

1. Nf3 {[%emt 0:00:40]} d5 {[%emt 0:02:39]} 2. g3 {[%emt 0:00:27]} Nf6 {
[%emt 0:00:43]} 3. Bg2 {[%emt 0:00:29]} c6 {[%emt 0:00:39]} 4. c4 {[%emt 0:01:
23]} Bg4 {[%emt 0:01:18]} 5. Ne5 {[%emt 0:00:56]} Be6 {[%emt 0:00:18]} 6. cxd5
{[%emt 0:00:33]} Bxd5 {[%emt 0:00:10]} 7. Nf3 {[%emt 0:00:06]} c5 {[%emt 0:01:
38]} 8. Nc3 {[%emt 0:02:53]} Bc6 {[%emt 0:00:09]} 9. O-O {[%emt 0:01:02]} e6 {
[%emt 0:00:24]} 10. d4 {[%emt 0:11:14]} Nbd7 {[%emt 0:00:56]} 11. Re1 {[%emt 0:
03:03]} cxd4 {[%emt 0:02:24]} 12. Nxd4 {[%emt 0:01:28]} Bxg2 {[%emt 0:00:06]}
13. Kxg2 {[%emt 0:00:07]} Bc5 {[%emt 0:10:38]} 14. Nb3 {[%emt 0:32:44]} Bb4 {
[%emt 0:07:35]} 15. Bd2 {[%emt 0:02:57]} O-O {[%emt 0:01:35]} 16. a3 {[%emt 0:
01:28]} Be7 {[%emt 0:00:47]} 17. Bf4 {[%emt 0:07:33]} Qb6 {[%emt 0:13:47]} 18.
e4 {[%emt 0:00:31]} Rfd8 {[%emt 0:02:25]} 19. Qc2 {[%emt 0:00:06]} e5 {[%emt 0:
02:09]} 20. Be3 {[%emt 0:05:01]} Qe6 {[%emt 0:00:21]} 21. f3 {[%emt 0:01:26]}
Rac8 {[%emt 0:01:30]} 22. Red1 {[%emt 0:03:37]} a6 {[%emt 0:00:50]} 23. Rd3 {
[%emt 0:01:55]} Nb6 {[%emt 0:11:55]} 24. Na5 {[%emt 0:01:40]} Nc4 {[%emt 0:00:
48]} 25. Nxc4 {[%emt 0:01:19]} Qxc4 {[%emt 0:00:20]} 26. Rad1 {[%emt 0:00:41]}
h6 {[%emt 0:00:53]} 27. Rxd8+ {[%emt 0:01:54]} Bxd8 {[%emt 0:00:50]} 28. Qa4 {
[%emt 0:00:59]} Qxa4 {[%emt 0:02:30]} 29. Nxa4 {[%emt 0:00:13]} Be7 {[%emt 0:
00:26]} 30. Rc1 {[%emt 0:00:55]} Rxc1 {[%emt 0:01:23]} 31. Bxc1 {[%emt 0:00:04]
} b5 {[%emt 0:00:36]} 32. Nc3 {[%emt 0:00:35]} Bc5 {[%emt 0:01:07]} 33. Kf1 {
[%emt 0:01:42]} Kf8 {[%emt 0:00:24]} 34. Ke2 {[%emt 0:00:45]} Ke7 {[%emt 0:07:
05]} 35. Kd3 {[%emt 0:00:41]} Kd6 {[%emt 0:01:57]} 36. Bd2 {[%emt 0:03:37]} Kc6
{[%emt 0:09:29]} 37. b4 {[%emt 0:07:09]} Bd4 {[%emt 0:05:53]} 38. Nd1 {[%emt 0:
00:43]} h5 {[%emt 0:01:25]} 1/2-1/2

[Event "82nd Brazilian-ch 2015"]
[Site "Rio de Janeiro"]
[Date "2016.01.15"]
[Round "9"]
[White "Santiago, Yago De Moura"]
[Black "Mekhitarian, Krikor Sevag"]
[Result "0-1"]
[ECO "A22"]
[WhiteElo "2422"]
[BlackElo "2555"]
[PlyCount "60"]
[EventDate "2016.??.??"]
[EventCountry "BRA"]
[TimeControl "5400+30"]

1. c4 {[%emt 0:00:22]} Nf6 2. Nc3 {[%emt 0:00:16]} e5 {[%emt 0:07:32]} 3. g3 {
[%emt 0:00:12]} Bb4 {[%emt 0:00:37]} 4. Nd5 Nxd5 {[%emt 0:02:58]} 5. cxd5 {
[%emt 0:00:14]} O-O {[%emt 0:00:54]} 6. Bg2 {[%emt 0:00:05]} d6 {[%emt 0:08:35]
} 7. e3 {[%emt 0:00:17]} c6 {[%emt 0:06:50]} 8. a3 {[%emt 0:01:05]} Ba5 {
[%emt 0:00:44]} 9. dxc6 {[%emt 0:01:54]} Nxc6 10. Ne2 {[%emt 0:00:37]} d5 {
[%emt 0:06:45]} 11. b4 {[%emt 0:00:19]} Bb6 {[%emt 0:04:06]} 12. d3 {[%emt 0:
00:24]} a6 {[%emt 0:10:30]} 13. O-O {[%emt 0:04:16]} Re8 {[%emt 0:00:24]} 14.
Kh1 {[%emt 0:00:52]} Be6 {[%emt 0:10:32]} 15. f4 {[%emt 0:04:27]} Qd7 {[%emt 0:
01:07]} 16. fxe5 {[%emt 0:01:07]} Nxe5 {[%emt 0:00:07]} 17. Nf4 {[%emt 0:00:14]
} f6 {[%emt 0:05:30]} 18. d4 {[%emt 0:12:48]} Nf7 {[%emt 0:03:55]} 19. Nxe6 {
[%emt 0:02:20]} Qxe6 {[%emt 0:00:07]} 20. Qf3 {[%emt 0:00:32]} Rad8 {[%emt 0:
00:39]} 21. h4 {[%emt 0:00:29]} Nh6 {[%emt 0:03:12]} 22. Bd2 {[%emt 0:00:34]}
f5 {[%emt 0:06:35]} 23. Qh5 {[%emt 0:23:11]} Rf8 {[%emt 0:01:33]} 24. Qf3 {
[%emt 0:02:45]} Ng4 {[%emt 0:00:30]} 25. Rac1 {[%emt 0:00:37]} g6 {[%emt 0:00:
51]} 26. Rc2 {[%emt 0:02:40]} Rfe8 {[%emt 0:05:10]} 27. Rfc1 {[%emt 0:01:19]}
Nxe3 {[%emt 0:04:29]} 28. Re1 {[%emt 0:01:33]} Bxd4 {[%emt 0:00:42]} 29. Rc3 {
[%emt 0:02:32]} Bxc3 {[%emt 0:00:57]} 30. Rxe3 {[%emt 0:00:07]} Be5 {[%emt 0:
00:02]} 0-1

[Event "82nd Brazilian-ch 2015"]
[Site "Rio de Janeiro"]
[Date "2016.01.15"]
[Round "9"]
[White "Souza, Rafael Cabral de"]
[Black "Reis, Renan do Carmo"]
[Result "1-0"]
[ECO "B94"]
[WhiteElo "2159"]
[BlackElo "2254"]
[PlyCount "69"]
[EventDate "2016.??.??"]
[EventCountry "BRA"]
[TimeControl "5400+30"]

1. e4 c5 2. Nf3 d6 3. d4 cxd4 4. Nxd4 Nf6 5. Nc3 a6 6. Bg5 Nbd7 7. f4 Qc7 8.
Qe2 e6 9. O-O-O Be7 10. g4 b5 11. a3 Rb8 12. Bg2 b4 13. axb4 Rxb4 14. e5 dxe5
15. Nc6 Bb7 16. Nxb4 Bxb4 17. Bxb7 Qxb7 18. Na2 exf4 19. Bxf4 O-O 20. Nxb4 Qxb4
21. Bd6 Qa4 22. Bxf8 Kxf8 23. Kb1 Nd5 24. Rhe1 N7b6 25. Qe5 Qb5 26. Qb8+ Ke7
27. Rd3 Qb4 28. Qb7+ Kf8 29. Rf1 f6 30. g5 Nc4 31. Qxb4+ Nxb4 32. Rd4 Ne3 33.
Rf3 Nexc2 34. Rd7 e5 35. Rc3 1-0